Cogmind - Beta 10 X2 @@@ ROGUE MODE // 2020.07.03 @ 11:17:34 Player: Ape Result: Destroyed by P-80 Master with Gamma Rifle Performance ------------- Evolutions (8) 4000 Regions Visited (21) 4200 Robots Destroyed (258) 1290 Value Destroyed (11243) 11243 Prototype IDs (65) 1300 Alien Tech Used (0) 0 Bonus (2474) 2474 TOTAL SCORE: 24507 Bonus ------- High Alert Combat Kills 857 Follower Combat Kills 788 Entered Garrisons 200 Used RIF Installer 500 Network Hubs Disabled 200 Aligned with FarCom 300 Met Data Miner 300 Met R17 at Cetus 500 Friendly Fire -1171 Cogmind --------- Core Integrity 0/1450 Matter 150/300 Energy 74/100 System Corruption 3% Temperature Cool (0) Movement Core (150) Ox2 Location -2/Research Parts ------- > --- POWER (3) -------- (None) > --- PROPULSION (4) --- Cooled Field Propulsion Drive > --- UTILITY (12) ----- Advanced Signal Interpreter Advanced Targeting Computer Faulty Experimental Melee Analysis Suite Advanced System Shield Advanced System Shield Stealth Drone Bay (0/2) > --- WEAPON (4) ------- (None) > --- INVENTORY (4) ---- Medium Storage Unit Peak State ------------ > --- POWER ------------ Heavy Antimatter Reactor Quantum Reactor > --- PROPULSION ------- Armored Huge Wheel Armored Huge Wheel > --- UTILITY ---------- Advanced Heat Sink Humpback Advanced Signal Interpreter Experimental Signal Interpreter Advanced Targeting Computer Advanced Targeting Computer Centrium Medium Armor Plating Advanced Force Field Improved System Shield Stealth Drone Bay > --- WEAPON ----------- XL Autogun Array > --- INVENTORY -------- Armored Huge Wheel Heavy Armor Plating Hardened Heavy Armor Plating Centrium Medium Armor Plating Centrium Medium Armor Plating Advanced Shield Generator Relay Coupler [NC] Stealth Drone Bay Stealth Drone Bay Improved Heavy Machine Gun Railgun Railgun Improved KE Penetrator Remote Datajack Segregator [Rating: 140] Favorites ----------- Power Improved Deuterium Engine Engine Improved Deuterium Engine Power Core Light Nuclear Core Reactor Quantum Reactor Propulsion Armored Huge Wheel Wheel Armored Huge Wheel Flight Unit Cooled Field Propulsion Drive Utility Humpback Device Improved Sensor Array Storage Humpback Processor Advanced Targeting Computer Hackware Improved System Shield Protection Centrium Medium Armor Plating Weapon Advanced Assault Cannon Energy Gun Electrolaser Energy Cannon Heavy Neutron Cannon Ballistic Gun Heavy Assault Rifle Ballistic Cannon Advanced Assault Cannon Launcher Heavy Missile Launcher Slashing Weapon Makeshift Sword Piercing Weapon Heavy Pick Build | -11 -10 -10 -10 -9 -8 -8 -8 -7 -7 -7 -7 -6 -6 -5 -4 -4 -4 -4 -4 -3 -2 ------- Run | Scr Mat Min Exi Min Mat Gar Mat Fac Low Low Dat Pro Fac Fac Fac Ext Cet Arc Hub Res Res Slots Evolved 16 | . . . . . 4 . . 2 . . . . 2 2 2 . . . . 2 2 Power 2 | . . . . . . . . . . . . . . . . . . . . 1 1 Propulsion 2 | . . . . . . . . . . . . . 2 . . . . . . . . Utility 10 | . . . . . 2 . . 2 . . . . . 2 2 . . . . 1 1 Weapon 2 | . . . . . 2 . . . . . . . . . . . . . . . . Parts Attached 364 | 6 8 14 4 3 17 9 4 43 8 7 1 23 12 28 25 40 27 2 25 33 25 Power 39 | 1 1 1 . . 3 1 1 4 1 1 . 3 2 5 2 . 3 2 2 2 4 Engine 10 | 1 1 1 . . . . . 2 1 1 . 1 1 1 . . . . . . . Core 13 | . . . . . 3 1 1 2 . . . 1 1 4 . . . . . . . Reactor 16 | . . . . . . . . . . . . 1 . . 2 . 3 2 2 2 4 Propulsion 28 | 2 2 3 1 . 2 . . 3 . . . 1 2 1 1 . 2 . 1 3 4 Treads . | . . . . . . . . . . . . . . . . . . . . . . Leg . | . . . . . . . . . . . . . . . . . . . . . . Wheel 25 | 2 2 3 1 . 2 . . 3 . . . 1 2 1 1 . 2 . 1 3 1 Hover . | . . . . . . . . . . . . . . . . . . . . . . Flight 3 | . . . . . . . . . . . . . . . . . . . . . 3 Utility 138 | 1 3 1 2 . 4 1 2 14 2 1 1 7 4 9 8 24 14 . 12 17 11 Device 40 | . 1 . . . . . . 4 1 . . 4 1 3 1 4 2 . 4 11 4 Storage 22 | 1 2 1 2 . . 1 . 3 . . 1 1 . . . 5 4 . . 1 . Processor 11 | . . . . . 2 . . . 1 . . . . . . 2 1 . 1 1 3 Hackware 13 | . . . . . 1 . . 1 . . . . 2 3 2 . . . 1 1 2 Protection 52 | . . . . . 1 . 2 6 . 1 . 2 1 3 5 13 7 . 6 3 2 Artifact . | . . . . . . . . . . . . . . . . . . . . . . Weapon 159 | 2 2 9 1 3 8 7 1 22 5 5 . 12 4 13 14 16 8 . 10 11 6 Energy Gun 6 | . . 2 . . 1 . . 2 . . . . . . . . . . 1 . . Energy Cannon 1 | . . . . . . . . . . . . . . . 1 . . . . . . Ballistic Gun 40 | 2 1 4 1 2 6 4 1 7 . . . . . . . . 2 . 2 7 1 Ballistic Cannon 48 | . . . . . 1 . . 7 1 2 . 5 3 7 6 7 2 . 5 2 . Launcher 28 | . 1 3 . 1 . 2 . 4 . 2 . 5 . . 2 3 2 . . . 3 Special Weapon . | . . . . . . . . . . . . . . . . . . . . . . Impact Weapon . | . . . . . . . . . . . . . . . . . . . . . . Slashing Weapon 35 | . . . . . . 1 . 2 4 1 . 2 1 6 5 6 2 . 2 2 1 Piercing Weapon 1 | . . . . . . . . . . . . . . . . . . . . . 1 Special Melee Weapon . | . . . . . . . . . . . . . . . . . . . . . . Unidentified Prototypes 4 | . . . . . . . . . . . . . . . 1 . 1 . . . 2 Parts Lost 82 | . 2 7 . . 1 3 . 8 1 2 . 7 1 6 . 3 11 . 11 1 18 Power 16 | . . 1 . . . 1 . 1 1 1 . 1 . 3 . . 1 . 3 . 3 Propulsion 15 | . 2 3 . . . . . 1 . . . 1 . . . . 2 . 2 . 4 Utility 23 | . . . . . . . . 1 . . . . . 2 . 3 6 . 2 1 8 Weapon 28 | . . 3 . . 1 2 . 5 . 1 . 5 1 1 . . 2 . 4 . 3 Highest Loss Streak 9 | . 1 6 . . 1 2 . 4 1 2 . 6 1 4 . 2 7 . 5 1 9 Average Slot Usage (%) 75 | . 90 98 87 85 84 79 80 74 75 75 69 70 72 75 77 75 64 63 70 77 49 Engine 3 | . 14 13 14 14 5 . . 4 7 6 . 1 1 . . . . . . . . Core 1 | . . . . . 3 8 9 2 . . . 1 4 5 2 . . . . . . Reactor 1 | . . . . . . . . . . . . . . . 2 5 4 5 4 7 4 Wheel 10 | . 22 27 28 28 14 9 9 6 7 7 7 6 12 11 10 10 9 10 9 9 4 Device 3 | . 2 . . . . . . 2 7 6 . 4 . 4 2 5 7 5 4 10 7 Storage 12 | . 22 28 16 14 9 9 9 14 15 15 15 15 13 11 10 10 8 10 10 8 1 Processor 3 | . . . . . 6 . . . 7 7 7 7 . . . 2 9 10 9 9 12 Hackware 6 | . . . . . 3 9 9 5 . . . . 11 15 24 13 5 5 9 4 4 Protection 4 | . . . . . 7 9 9 5 . . 7 2 . 2 4 6 8 10 5 6 2 Energy Gun 1 | . . 11 14 7 2 . . 2 . . . . . . . . . . . . . Ballistic Gun 9 | . 27 15 14 14 26 34 35 18 . . . . . . . . 3 5 1 13 3 Ballistic Cannon 11 | . . . . . 4 . . 6 23 23 30 21 23 18 15 18 5 . 12 1 1 Slashing Weapon 1 | . . . . . . . . . 3 6 . 4 2 4 4 1 . . . 2 1 Naked Turns . | . . . . . . . . . . . . . . . . . . . . . . Heaviest Build 244 | 10 42 56 88 91 107 108 107 218 198 205 205 211 209 218 210 228 228 210 235 244 191 Greatest Support 56 | 26 26 32 32 32 32 28 28 28 28 28 28 28 56 56 56 56 56 56 56 56 56 Greatest Overweight (x) 8 | . 3 3 2 2 3 3 3 7 7 7 7 7 6 3 3 4 5 3 8 4 3 Average Overweight (x) 3 | . 1 1 1 2 2 3 3 6 6 6 7 6 3 3 3 3 2 3 3 3 . Largest Inventory Capacity 64 | 6 16 18 24 24 24 24 24 44 44 44 44 44 44 44 44 64 44 44 44 48 24 Average Capacity 37 | 5 12 16 22 24 24 23 24 43 44 44 44 43 44 44 44 44 29 44 44 41 13 Most Carried 44 | 2 16 18 24 24 24 24 24 44 44 44 43 43 44 44 44 44 44 44 44 44 24 Average Carried 36 | 1 10 16 21 24 23 23 23 39 43 43 39 40 42 43 43 42 25 40 42 39 12 Final Capacity 44 | 6 16 18 24 24 24 24 24 44 44 44 44 44 44 44 44 44 44 44 44 24 4 Final Carried 44 | 2 16 18 24 24 24 24 24 44 44 43 43 39 43 44 44 44 37 44 44 24 1 Class Distribution -------------------- 47% | Hauler-Skirmisher 12% | Hauler-Mutant 10% | Hauler-Gunner 7% | Hacker-Skirmisher 7% | Mutant 7% | Hauler-Tank Dominant Class ---------------- Mutant | -10/Materials Mutant | -10/Mines Hauler-Mutant | -10/Exiles Hauler-Mutant | -9/Mines Hauler-Skirmisher | -8/Materials Hauler-Skirmisher | -8/Garrison Hauler-Skirmisher | -8/Materials Hauler-Skirmisher | -7/Factory Hauler-Mutant | -7/Lower Caves Hauler-Skirmisher | -7/Lower Caves Hauler-Tank | -7/Data Miner Hauler-Mutant | -6/Proximity Caves Hauler-Skirmisher | -6/Factory Hauler-Skirmisher | -5/Factory Hacker-Skirmisher | -4/Factory Hacker-Skirmisher | -4/Extension Hauler-Gunner | -4/Cetus Hauler-Gunner | -4/Archives Hauler-Gunner | -4/Hub_04(d) Hauler-Gunner | -3/Research Scavenger-Gunner | -2/Research Resources | -11 -10 -10 -10 -9 -8 -8 -8 -7 -7 -7 -7 -6 -6 -5 -4 -4 -4 -4 -4 -3 -2 ----------- Run | Scr Mat Min Exi Min Mat Gar Mat Fac Low Low Dat Pro Fac Fac Fac Ext Cet Arc Hub Res Res Matter Collected 11698 | 211 431 285 20 74 881 395 138 1585 212 114 . 1085 339 466 450 1670 1410 232 619 758 323 Remotely . | . . . . . . . . . . . . . . . . . . . . . . Salvage Created 10139 | . 559 134 . . 751 381 159 1482 50 326 . 425 220 379 339 2155 893 378 391 845 272 Parts 482 | . 32 20 . . 50 14 8 79 3 8 . 10 10 8 15 73 44 19 16 51 22 Haulers Intercepted 6 | . 2 . . . 1 . 2 1 . . . . . . . . . . . . . Recyclers Shooed 9 | . 2 . . . 1 . . 3 . . . . . 3 . . . . . . . Parts Field Recycled . | . . . . . . . . . . . . . . . . . . . . . . Retrieved Matter . | . . . . . . . . . . . . . . . . . . . . . . Parts Self-Destructed 29 | . . . . . . . . . 9 5 . 15 . . . . . . . . . Prevented 1 | . . . . . . . . . . . . 1 . . . . . . . . . Kills | -11 -10 -10 -10 -9 -8 -8 -8 -7 -7 -7 -7 -6 -6 -5 -4 -4 -4 -4 -4 -3 -2 ------- Run | Scr Mat Min Exi Min Mat Gar Mat Fac Low Low Dat Pro Fac Fac Fac Ext Cet Arc Hub Res Res Combat Hostiles Destroyed 203 | . 11 10 . . 17 8 1 33 . 10 . 12 3 5 8 26 25 4 8 9 13 Melee 2 | . . . . . . . . . . . . 1 . 1 . . . . . . . Guns 84 | . 8 2 . . 13 5 1 19 . . . . . . . . 21 4 . 9 2 Cannons 48 | . . . . . 1 . . 8 . 1 . 5 3 4 4 10 4 . 8 . . AOE 69 | . 3 8 . . 3 3 . 6 . 9 . 6 . . 4 16 . . . . 11 Classes Destroyed 15 | . 5 1 . . 3 2 . 2 . . . . . 1 . 1 . . . . . Worker 9 | . . 2 . . . . . . . . . . . 1 . 3 . . 2 1 . Builder 5 | . 1 . . . 1 . . . . . . . . . . 2 . . . 1 . Tunneler 7 | . . . . . 1 . . . . . . . . . . 5 . . . . 1 Hauler 6 | . 2 . . . 1 . 2 1 . . . . . . . . . . . . . Recycler 19 | . 1 . . . 1 . . 2 . . . . 1 2 1 10 . . . 1 . Drone 1 | . . . . . . . . . . . . . . 1 . . . . . . . Watcher 5 | . . . . . . 1 . 1 . . . . . . . . 2 . 1 . . Swarmer 59 | . 3 9 . . 3 . . 1 . 1 . 5 . . 4 5 12 . 3 . 13 Grunt 67 | . 8 1 . . 8 6 . 17 . 6 . 5 . 1 . 7 5 . 2 1 . Brawler 1 | . . . . . . . . 1 . . . . . . . . . . . . . Duelist 6 | . . . . . 1 . . . . 3 . 1 . . . 1 . . . . . Sentry 28 | . . . . . 5 1 1 3 . . . 1 2 2 1 3 . 4 3 2 . Hunter 15 | . . . . . . 1 . 3 . . . 1 . 1 1 4 . . . 4 . Programmer 18 | . . . . . . . . 8 . . . . 1 1 2 4 . . . 2 . Behemoth 2 | . . . . . . . . . . . . . . . . 2 . . . . . Cetus Guard 8 | . . . . . . . . . . . . . . . . . 8 . . . . Savage 1 | . . . . . . . . . . . . . . . . 1 . . . . . Butcher 1 | . . . . . . . . . 1 . . . . . . . . . . . . Best Kill Streak 19 | . 3 4 . . 4 8 1 3 . 7 . 4 1 2 4 19 5 4 3 4 7 Combat Bots Only 9 | . 3 3 . . 4 7 1 3 . 7 . 4 1 1 4 9 5 4 3 3 6 Max Kills in Single Turn 6 | . 3 3 . . 2 2 1 3 1 4 . 2 1 1 4 3 2 1 2 2 6 Gunslinging 1 | . . . . . 1 . . 1 . . . . . . . . . . . . . Exploded 5 | . 3 3 . . 2 2 . 3 . 4 . 2 . . 4 3 . . . . 5 Melee 1 | . . . . . . . . . . . . 1 . 1 . . . . . . . Uniques/NPCs Destroyed . | . . . . . . . . . . . . . . . . . . . . . . Combat | -11 -10 -10 -10 -9 -8 -8 -8 -7 -7 -7 -7 -6 -6 -5 -4 -4 -4 -4 -4 -3 -2 -------- Run | Scr Mat Min Exi Min Mat Gar Mat Fac Low Low Dat Pro Fac Fac Fac Ext Cet Arc Hub Res Res Damage Taken 22644 | . 365 446 . . 746 977 54 2186 54 858 . 1667 222 906 717 2309 2972 191 2355 1014 4605 Core 3129 | . 59 53 . . 75 88 27 173 20 143 . 176 27 75 96 135 338 22 128 32 1462 Absorbed by Shields 1313 | . . . . . . . . . . . . . . . . . . . . 762 551 Core Remaining (%) 71 | 100 . . . 55 . . 65 . . . . 26 96 92 . . . . 37 97 . Volleys Fired 520 | . 51 24 . 2 55 21 5 94 . 13 . 32 9 18 13 47 66 10 22 27 11 Largest 4 | . 2 2 . 1 4 4 4 4 . 4 . 4 4 4 4 4 4 1 4 4 1 Hottest 240 | . 40 70 . 30 108 94 94 184 . 184 . 184 180 206 225 229 229 60 240 120 60 Shots Fired 1389 | . 100 42 . 2 195 58 20 314 1 30 . 62 35 68 40 145 100 10 65 91 11 Gun 780 | . 98 36 . . 180 53 20 232 . . . . . . . . 50 10 3 91 7 Cannon 547 | . . . . . 13 . . 78 . 24 . 51 35 68 39 131 46 . 62 . . Launcher 62 | . 2 6 . 2 2 5 . 4 1 6 . 11 . . 1 14 4 . . . 4 Special . | . . . . . . . . . . . . . . . . . . . . . . Kinetic 1287 | . 98 28 . . 192 53 20 280 . 24 . 51 35 68 38 131 96 10 65 91 7 Thermal 37 | . . 8 . . 1 . . 27 . . . . . . 1 . . . . . . Explosive 55 | . 2 6 . 2 2 5 . 2 1 6 . 6 . . 1 14 4 . . . 4 Electromagnetic 10 | . . . . . . . . 5 . . . 5 . . . . . . . . . Robot Hit Streak 22 | . 11 6 . . 13 7 10 12 4 5 . 4 4 10 4 8 22 19 15 11 8 Robot Miss Streak 14 | . 3 3 . . 6 3 4 9 . 5 . 14 14 8 4 7 9 1 2 2 4 Penetration Max 1 | . . . . . . . . 1 . . . . . . . . . . . 1 . Secondary Targets 10 | . . . . . 3 3 . 2 . . . . . . . . . . . 2 . Max Gunslinging Chain 1 | . . . . . 1 1 . 1 . . . . . . . . . . . 1 . Shots Hit Robots 914 | . 64 28 . . 121 32 14 208 2 17 . 23 26 57 24 92 74 10 47 67 8 Core Hits 592 | . 29 17 . . 39 21 5 89 2 20 . 37 19 43 14 93 73 17 23 32 19 Critical Hits 28 | . . 1 . . 1 . 1 1 . . . 1 . 2 2 9 3 . 5 2 . Critical Kills 18 | . . . . . 1 . . 1 . . . 1 . 2 2 5 2 . 3 1 . Critical Parts Destroyed 9 | . . 1 . . . . 1 . . . . . . . . 3 1 . 2 1 . Melee Attacks 209 | . . . . . . 1 . 4 1 1 . 16 18 32 21 26 21 . 13 25 30 Thermal 10 | . . . . . . 1 . . 1 . . . . 3 . . . . 5 . . Impact . | . . . . . . . . . . . . . . . . . . . . . . Slashing 184 | . . . . . . . . 4 . 1 . 16 18 29 21 26 21 . 8 25 15 Piercing 15 | . . . . . . . . . . . . . . . . . . . . . 15 Sneak Attacks 18 | . . . . . . . . 1 1 . . . 1 3 2 9 . . . 1 . Combat Hostiles . | . . . . . . . . . . . . . . . . . . . . . . Follow-up Attacks 3 | . . . . . . . . . . . . . . . . . . . 3 . . Damage Inflicted 34055 | . 753 713 . . 1938 638 223 5129 180 1242 . 1357 673 1392 1150 8377 4281 796 1970 1664 1579 Guns 10648 | . 659 226 . . 1693 318 223 2346 . . . . . . . . 2502 796 172 1565 148 Cannons 9662 | . . . . . 142 . . 1119 . 319 . 395 469 949 615 3209 1064 . 1381 . . Explosions 11471 | . 94 487 . . 103 320 . 1540 180 923 . 925 100 . 330 4056 715 . 282 . 1416 Melee 2259 | . . . . . . . . 124 . . . 37 104 443 205 1112 . . 135 99 . Ramming 15 | . . . . . . . . . . . . . . . . . . . . . 15 Kinetic 19998 | . 659 141 . . 1823 318 223 3250 . 319 . 395 469 949 615 3209 3566 796 1553 1565 148 Thermal 2135 | . . 85 . . 12 . . 1376 . . . . 100 . . 562 . . . . . Explosive 9167 | . 94 487 . . 103 320 . 278 180 923 . 827 . . 330 3494 715 . . . 1416 Electromagnetic 481 | . . . . . . . . 101 . . . 98 . . . . . . 282 . . Impact . | . . . . . . . . . . . . . . . . . . . . . . Slashing 2259 | . . . . . . . . 124 . . . 37 104 443 205 1112 . . 135 99 . Piercing . | . . . . . . . . . . . . . . . . . . . . . . Highest Corruption 14 | . . . . . . . . 6 6 6 6 6 . 1 . 3 3 3 14 3 2 Average Corruption 4 | . . . . . . . . 4 6 6 6 6 . 1 . 1 3 3 3 1 2 Corruption Purged . | . . . . . . . . . . . . . . . . . . . . . . Effects 266 | . . . . . . . . 105 44 26 5 39 . 3 . 1 15 1 22 5 . Message Errors 64 | . . . . . . . . 24 15 2 3 11 . 3 . 1 3 . 2 . . Matter Fused 60 | . . . . . . . . 18 10 7 2 9 . . . . 5 1 8 . . Heat Flow Errors 29 | . . . . . . . . 11 6 3 . 5 . . . . 2 . 2 . . Energy Discharges 34 | . . . . . . . . 14 6 4 . 2 . . . . 2 . 3 3 . Data Loss (minor) 32 | . . . . . . . . 14 4 6 . 4 . . . . 1 . 2 1 . Data Loss (major) 8 | . . . . . . . . 4 2 1 . . . . . . . . 1 . . Misfires 7 | . . . . . . . . 2 1 1 . 3 . . . . . . . . . Misdirections 1 | . . . . . . . . . . . . . . . . . . . 1 . . Targeting Errors 28 | . . . . . . . . 15 . 2 . 5 . . . . 2 . 3 1 . Weapon Failures 3 | . . . . . . . . 3 . . . . . . . . . . . . . Overload Shots . | . . . . . . . . . . . . . . . . . . . . . . Overflow Damage 1392 | . . 25 . . . . . 331 7 43 . 13 . 222 62 484 41 . 31 . 133 Projectiles 179 | . . . . . . . . 43 . 25 . . . . . 70 41 . . . . Explosions 718 | . . 25 . . . . . 288 7 18 . 13 . . 16 187 . . 31 . 133 Melee 495 | . . . . . . . . . . . . . . 222 46 227 . . . . . Knockbacks 66 | . . . . . 3 . . 18 . . . 3 9 8 4 10 3 . 8 . . Impact . | . . . . . . . . . . . . . . . . . . . . . . Kinetic 63 | . . . . . 3 . . 17 . . . 3 9 8 4 9 3 . 7 . . Secondary 3 | . . . . . . . . 1 . . . . . . . 1 . . 1 . . Self-Inflicted Damage 508 | . 13 53 . . . . . 66 35 23 . 80 23 . . 79 . . 71 . 65 Shots 16 | . 1 3 . . . . . 2 1 3 . 2 1 . . 1 . . 1 . 1 Rammed 4 | . . . . . . . . . . . . . . . . . . . . . 4 Targets Rammed 4 | . . . . . . . . . . . . . . . . . . . . . 4 Kicked . | . . . . . . . . . . . . . . . . . . . . . . Crushed . | . . . . . . . . . . . . . . . . . . . . . . Highest Temperature 496 | . 12 50 . . 306 175 27 496 268 392 . 427 314 369 356 301 280 2 280 . 145 Average Temperature 94 | . 7 19 . . 85 66 12 99 96 143 . 147 134 103 126 70 88 2 89 . 82 Received Heat Transfer 3371 | . 171 153 . . 351 318 9 678 . 198 . 420 48 45 33 156 261 18 315 36 161 Effects 9 | . . . . . 4 . . 2 . . . 3 . . . . . . . . . Shutdowns 1 | . . . . . . . . 1 . . . . . . . . . . . . . Energy Bleed 1 | . . . . . . . . 1 . . . . . . . . . . . . . Interference 7 | . . . . . 4 . . . . . . 3 . . . . . . . . . Siege Activations . | . . . . . . . . . . . . . . . . . . . . . . Robots Corrupted . | . . . . . . . . . . . . . . . . . . . . . . Combat Hostiles . | . . . . . . . . . . . . . . . . . . . . . . Parts Fried 2 | . . . . . . . . 1 . . . . . . . . . . 1 . . Impact Corruptions . | . . . . . . . . . . . . . . . . . . . . . . Robots Melted . | . . . . . . . . . . . . . . . . . . . . . . Combat Hostiles . | . . . . . . . . . . . . . . . . . . . . . . Parts Melted 1 | . . 1 . . . . . . . . . . . . . . . . . . . Heat Transferred 1716 | . . 259 . . 37 . . 1070 . . . . 50 . . 300 . . . . . Parts Sabotaged . | . . . . . . . . . . . . . . . . . . . . . . Parts Stolen . | . . . . . . . . . . . . . . . . . . . . . . Parts Stripped . | . . . . . . . . . . . . . . . . . . . . . . Power Chain Reactions . | . . . . . . . . . . . . . . . . . . . . . . Missiles Intercepted . | . . . . . . . . . . . . . . . . . . . . . . Alert | -11 -10 -10 -10 -9 -8 -8 -8 -7 -7 -7 -7 -6 -6 -5 -4 -4 -4 -4 -4 -3 -2 ------- Run | Scr Mat Min Exi Min Mat Gar Mat Fac Low Low Dat Pro Fac Fac Fac Ext Cet Arc Hub Res Res Peak Influence 908 | . 255 261 . . 354 304 280 908 . . . . 139 104 824 743 609 273 670 347 572 Average Influence 223 | . 132 115 . . 146 223 214 248 . . . . 59 37 152 464 387 240 193 280 299 Maximum Alert Level 3 | . 1 1 . . 1 1 1 3 . . . . . . 3 3 2 1 2 1 2 Low Security (%) 7 | 100 91 98 . 100 64 33 19 5 . . . . 100 100 75 7 6 16 27 2 14 Level 1 69 | . 8 1 . . 35 66 80 54 . . . . . . . 34 37 83 12 97 55 Level 2 22 | . . . . . . . . 29 . . . . . . 11 42 56 . 60 . 30 Level 3 . | . . . . . . . . 11 . . . . . . 13 15 . . . . . Level 4 . | . . . . . . . . . . . . . . . . . . . . . . Level 5 . | . . . . . . . . . . . . . . . . . . . . . . High Security . | . . . . . . . . . . . . . . . . . . . . . . Max Security . | . . . . . . . . . . . . . . . . . . . . . . Squads Dispatched 68 | . 5 . . . 3 . 2 22 . 1 . 1 1 2 8 5 . . 8 3 7 Investigation 29 | . 3 . . . 2 . 2 10 . . . . . 1 4 1 . . 3 . 3 Extermination 16 | . . . . . . . . 8 . . . . 1 1 2 . . . 1 2 1 Reinforcement 14 | . 2 . . . 1 . . 3 . . . . . . . 4 . . 1 1 2 Assault 6 | . . . . . . . . 1 . 1 . 1 . . 2 . . . . . 1 Garrison 3 | . . . . . . . . . . . . . . . . . . . 3 . . Intercept . | . . . . . . . . . . . . . . . . . . . . . . Construction Impeded 4 | . . . . . . . . 1 . . . . . . . 3 . . . . . Haulers Reinforced 2 | . . . . . . . . 1 . . . . . . . . . . 1 . . Stealth | -11 -10 -10 -10 -9 -8 -8 -8 -7 -7 -7 -7 -6 -6 -5 -4 -4 -4 -4 -4 -3 -2 --------- Run | Scr Mat Min Exi Min Mat Gar Mat Fac Low Low Dat Pro Fac Fac Fac Ext Cet Arc Hub Res Res Distress Signals 25 | . 1 . . . 2 1 . 2 . . . . . 2 2 3 2 . 7 1 2 Communications Jammed 8 | . . . . . . . . . . . . . . . . . . . . 8 . Distress Signals 8 | . . . . . . . . . . . . . . . . . . . . 8 . Times Spotted 386 | . 19 15 . . 31 14 2 46 . 14 . 21 6 12 27 30 33 6 30 13 67 Peak Tracking Total 17 | . 3 4 . . 5 6 1 6 . 10 . 7 2 4 6 6 6 1 11 3 17 Tactical Retreats 36 | . . 3 . . 3 2 . 1 . 3 . 1 . 1 1 . 5 . 1 1 14 Traps | -11 -10 -10 -10 -9 -8 -8 -8 -7 -7 -7 -7 -6 -6 -5 -4 -4 -4 -4 -4 -3 -2 ------- Run | Scr Mat Min Exi Min Mat Gar Mat Fac Low Low Dat Pro Fac Fac Fac Ext Cet Arc Hub Res Res Traps Triggered 15 | . 2 . . . . 2 1 5 . . . . 1 . 2 . . . 1 1 . Indirectly 2 | . . . . . . . . 2 . . . . . . . . . . . . . Trap Hack Attempts . | . . . . . . . . . . . . . . . . . . . . . . Triggered . | . . . . . . . . . . . . . . . . . . . . . . Disarmed . | . . . . . . . . . . . . . . . . . . . . . . Reprogrammed 9 | . . . . . . . . . . . . . . . . 5 . . . . 4 Reused 2 | . . . . . . . . . . . . . . . . . . . . . 2 Traps Extracted . | . . . . . . . . . . . . . . . . . . . . . . Installed . | . . . . . . . . . . . . . . . . . . . . . . Triggered 6 | . . . . . . . . . . 4 . . . . . . . . . . 2 Exploded 1 | . . . . . . . . . . . . 1 . . . . . . . . . Machines | -11 -10 -10 -10 -9 -8 -8 -8 -7 -7 -7 -7 -6 -6 -5 -4 -4 -4 -4 -4 -3 -2 ---------- Run | Scr Mat Min Exi Min Mat Gar Mat Fac Low Low Dat Pro Fac Fac Fac Ext Cet Arc Hub Res Res Machines Disabled 42 | . 1 1 . . . 1 . 17 . . . 1 1 1 3 3 1 2 10 . . Max in Single Turn 6 | . 1 1 . . . 1 . 6 . . . 1 1 1 2 2 1 1 6 . . Garrison Access 5 | . . . . . . . . 1 . . . . . 1 2 . . . . 1 . Network Hub 1 | . . . . . . . . . . . . . . . . . . . 1 . . Energy Cycler 1 | . . . . . . . . . . . . . . . . 1 . . . . . Machines Sabotaged . | . . . . . . . . . . . . . . . . . . . . . . Garrisons Compromised . | . . . . . . . . . . . . . . . . . . . . . . Overloaded Fab Kills . | . . . . . . . . . . . . . . . . . . . . . . Fab Network Shutdowns 1 | . . . . . . . . . . . . . . . 1 . . . . . . Hacking | -11 -10 -10 -10 -9 -8 -8 -8 -7 -7 -7 -7 -6 -6 -5 -4 -4 -4 -4 -4 -3 -2 --------- Run | Scr Mat Min Exi Min Mat Gar Mat Fac Low Low Dat Pro Fac Fac Fac Ext Cet Arc Hub Res Res Machines Accessed 107 | . 5 . 2 . 8 . 3 17 3 . 4 . 11 7 12 12 5 . 7 5 6 Terminals 58 | . 4 . . . 5 . 1 7 . . . . 6 1 6 12 5 . 5 2 4 Fabricators 9 | . . . . . . . . 3 . . . . 2 1 2 . . . . . 1 Repair Stations 7 | . . . . . 1 . . 2 . . . . 1 2 . . . . . . 1 Recycling Units 8 | . 1 . . . 1 . . 2 . . . . 1 1 1 . . . . 1 . Scanalyzers 8 | . . . . . . . 2 2 . . . . 1 1 1 . . . . 1 . Garrison Access 8 | . . . . . 1 . . 1 . . . . . 1 2 . . . 2 1 . Total Hacks 484 | . 13 . 5 . 27 . 12 54 6 . 30 . 45 35 72 92 18 . 26 19 30 Successful 290 | . 6 . 5 . 13 . 11 28 6 . 30 . 27 25 52 57 5 . 11 7 7 Failed 191 | . 7 . . . 14 . 1 25 . . . . 18 10 19 34 13 . 15 12 23 Catastrophic 32 | . . . . . 2 . . 4 . . . . 2 . 2 2 4 . 3 3 10 Database Lockouts 6 | . . . . . . . . 1 . . . . . . 2 3 . . . . . Manual 236 | . 7 . 1 . 17 . 2 26 . . . . 17 12 37 77 17 . 14 2 7 Terminals 307 | . 11 . . . 23 . 2 26 . . . . 27 9 51 92 18 . 21 5 22 Fabricators 42 | . . . . . . . . 14 . . . . 5 10 12 . . . . . 1 Repair Stations 29 | . . . . . 2 . . 7 . . . . 6 7 . . . . . . 7 Recycling Units 21 | . 2 . . . 1 . . 3 . . . . 2 4 6 . . . . 3 . Scanalyzers 33 | . . . . . . . 10 3 . . . . 5 4 1 . . . . 10 . Garrison Access 11 | . . . . . 1 . . 1 . . . . . 1 2 . . . 5 1 . Terminal Hacks 148 | . 5 . 5 . 9 . 1 6 6 . 30 . 13 4 22 34 3 . 5 1 4 Record 22 | . . . 4 . . . . . 4 . 11 . 1 . . . 1 . . . 1 Part Schematic 23 | . 1 . . . 3 . . 1 . . 8 . . 2 5 3 . . . . . Robot Schematic 8 | . . . . . . . . . . . 8 . . . . . . . . . . Robot Analysis 10 | . 1 . . . . . . . . . . . 5 . 1 3 . . . . . Prototype ID Bank 12 | . 1 . . . 1 . . 1 . . 3 . 2 . 2 1 . . 1 . . Open Door 4 | . . . . . . . . . 2 . . . . . . 2 . . . . . Level Access Points 1 | . . . . . . . . . . . . . 1 . . . . . . . . Branch Access Points 4 | . . . . . . . . 1 . . . . . 1 1 1 . . . . . Emergency Access Points 1 | . . . . . . . . . . . . . . . 1 . . . . . . Machine Index 1 | . . . . . . . . . . . . . . . 1 . . . . . . Terminal Index 1 | . 1 . . . . . . . . . . . . . . . . . . . . Fabricator Index 5 | . . . . . . . . 1 . . . . 1 . 1 1 . . . 1 . Unreport Threat 13 | . . . . . 2 . 1 . . . . . . . 2 4 2 . 2 . . Locate Traps 19 | . . . . . 2 . . 1 . . . . 1 1 4 8 . . 1 . 1 Reprogram Traps 4 | . . . . . . . . . . . . . . . . 3 . . . . 1 Extermination Status 1 | . . . . . . . . . . . . . . . 1 . . . . . . Recall Reinforcements 1 | . . . . . . . . . . . . . . . . 1 . . . . . Hauler Manifests 2 | . 1 . . . 1 . . . . . . . . . . . . . . . . Registered Components 3 | . . . . . . . . . . . . . . . 1 1 . . . . 1 Registered Prototypes 2 | . . . . . . . . . . . . . 1 . 1 . . . . . . Zone Layout 10 | . . . . . . . . 1 . . . . 1 . 1 6 . . 1 . . EX-Prototype ID Bank 1 | . . . 1 . . . . . . . . . . . . . . . . . . Fabricator Hacks 19 | . . . . . . . . 6 . . . . 1 5 7 . . . . . . Load Schematic 10 | . . . . . . . . 4 . . . . 1 2 3 . . . . . . Build 9 | . . . . . . . . 2 . . . . . 3 4 . . . . . . Repair Station Hacks 13 | . . . . . 1 . . 4 . . . . 2 5 . . . . . . 1 Scan Component 8 | . . . . . 1 . . 2 . . . . 1 3 . . . . . . 1 Repair 5 | . . . . . . . . 2 . . . . 1 2 . . . . . . . Recycling Unit Hacks 10 | . . . . . . . . 1 . . . . 2 2 5 . . . . . . Process 5 | . . . . . . . . . . . . . 1 1 3 . . . . . . Retrieve Matter 5 | . . . . . . . . 1 . . . . 1 1 2 . . . . . . Scanalyzer 21 | . . . . . . . 8 . . . . . 4 4 1 . . . . 4 . Insert Component 14 | . . . . . . . 5 . . . . . 2 2 1 . . . . 4 . Analyze 7 | . . . . . . . 3 . . . . . 2 2 . . . . . . . Garrison Access Hacks 5 | . . . . . 1 . . 1 . . . . . 1 1 . . . . 1 . Unlock Access 1 | . . . . . 1 . . . . . . . . . . . . . . . . Seal Access 4 | . . . . . . . . 1 . . . . . 1 1 . . . . 1 . Unauthorized Hacks 74 | . 1 . . . 2 . 2 10 . . . . 5 4 16 23 2 . 6 1 2 Terminals 56 | . . . . . 1 . . 6 . . . . 5 1 13 23 2 . 3 1 1 Track 7 | . . . . . . . . . . . . . . . 3 4 . . . . . Assimilate 7 | . . . . . . . . 1 . . . . 2 . 3 1 . . . . . Botnet 27 | . . . . . 1 . . 4 . . . . 3 1 4 9 1 . 2 1 1 Disrupt 12 | . . . . . . . . 1 . . . . . . 2 8 1 . . . . Operators 2 | . . . . . . . . . . . . . . . 1 1 . . . . . Sabotage 1 | . . . . . . . . . . . . . . . . . . . 1 . . Fabricators 6 | . . . . . . . . . . . . . . 3 2 . . . . . 1 Report 1 | . . . . . . . . . . . . . . 1 . . . . . . . Prioritize 2 | . . . . . . . . . . . . . . 1 1 . . . . . . Siphon 2 | . . . . . . . . . . . . . . 1 1 . . . . . . Overload 1 | . . . . . . . . . . . . . . . . . . . . . 1 Repair Stations . | . . . . . . . . . . . . . . . . . . . . . . Recycling Units 4 | . 1 . . . 1 . . 2 . . . . . . . . . . . . . Tunnel 4 | . 1 . . . 1 . . 2 . . . . . . . . . . . . . Scanalyzers 4 | . . . . . . . 2 2 . . . . . . . . . . . . . Extract 4 | . . . . . . . 2 2 . . . . . . . . . . . . . Garrison Access 4 | . . . . . . . . . . . . . . . 1 . . . 3 . . Redirect 1 | . . . . . . . . . . . . . . . . . . . 1 . . Reprogram 2 | . . . . . . . . . . . . . . . . . . . 2 . . Eject 1 | . . . . . . . . . . . . . . . 1 . . . . . . Data Cores Recovered . | . . . . . . . . . . . . . . . . . . . . . . Used . | . . . . . . . . . . . . . . . . . . . . . . Hacking Detections 75 | . 5 . . . 6 . 1 10 . . . . 11 6 6 10 5 . 6 4 5 Full Trace Events 9 | . . . . . 1 . . 3 . . . . . 1 2 . . . . . 2 Feedback Events . | . . . . . . . . . . . . . . . . . . . . . . Feedback Blocked . | . . . . . . . . . . . . . . . . . . . . . . Robot Schematics Acquired 8 | . . . . . . . . . . . 8 . . . . . . . . . . Robots Built . | . . . . . . . . . . . . . . . . . . . . . . Matter . | . . . . . . . . . . . . . . . . . . . . . . Time . | . . . . . . . . . . . . . . . . . . . . . . Total Robot Build Rating . | . . . . . . . . . . . . . . . . . . . . . . Part Schematics Acquired 61 | . 1 . . . 3 . 13 22 . . 8 . 2 4 5 3 . . . . . Parts Built 11 | . . . . . . . . 3 . . . . . 3 5 . . . . . . Matter 1140 | . . . . . . . . 248 . . . . . 254 638 . . . . . . Time 339 | . . . . . . . . 124 . . . . . 101 114 . . . . . . Total Part Build Rating 37 | . . . . . . . . 7 . . . . . 3 27 . . . . . . Parts Repaired 5 | . . . . . . . . 2 . . . . 1 2 . . . . . . . Time 123 | . . . . . . . . 54 . . . . 22 47 . . . . . . . Parts Recycled . | . . . . . . . . . . . . . . . . . . . . . . Recycled Matter 444 | . . . . . . . . . . . . . 26 56 362 . . . . . . Retrieved Matter 911 | . . . . . . . . 467 . . . . 26 56 362 . . . . . . Retrieved Components . | . . . . . . . . . . . . . . . . . . . . . . Parts Scanalyzed 7 | . . . . . . . 3 . . . . . 2 2 . . . . . . . Part Schematics Acquired 7 | . . . . . . . 3 . . . . . 2 2 . . . . . . . Parts Damaged . | . . . . . . . . . . . . . . . . . . . . . . Bothacking | -11 -10 -10 -10 -9 -8 -8 -8 -7 -7 -7 -7 -6 -6 -5 -4 -4 -4 -4 -4 -3 -2 ------------ Run | Scr Mat Min Exi Min Mat Gar Mat Fac Low Low Dat Pro Fac Fac Fac Ext Cet Arc Hub Res Res Used RIF Installer 1 | . . . . . . 1 . . . . . . . . . . . . . . . Robots Hacked . | . . . . . . . . . . . . . . . . . . . . . . Non-combat . | . . . . . . . . . . . . . . . . . . . . . . Combat . | . . . . . . . . . . . . . . . . . . . . . . Robot Hacks Applied . | . . . . . . . . . . . . . . . . . . . . . . Relay Couplers Released 3 | . . . . . . . . . . . . . . . 3 . . . . . . Ejected 3 | . . . . . . . . . . . . . . . 3 . . . . . . Robots Rewired 13 | . . . . . . 3 . . . . . 2 . . . 8 . . . . . Allies Hacked 1 | . . . . . . . . . . . . . . . . . . . 1 . . Hacks Repelled . | . . . . . . . . . . . . . . . . . . . . . . Allies | -11 -10 -10 -10 -9 -8 -8 -8 -7 -7 -7 -7 -6 -6 -5 -4 -4 -4 -4 -4 -3 -2 -------- Run | Scr Mat Min Exi Min Mat Gar Mat Fac Low Low Dat Pro Fac Fac Fac Ext Cet Arc Hub Res Res Total Allies 34 | . . . . . . 3 . . 3 . . 3 2 . 4 14 . . 5 . . Largest Group 8 | . . . . . . 2 . . 3 . . 3 1 1 3 8 1 . 4 . . Highest-Rated Group 312 | . . . . . . 26 . . 75 . . 152 26 26 138 312 29 . 247 . . Highest-Rated Ally 115 | . . . . . . 13 . . 25 . . 94 26 26 46 49 29 . 115 . . Total Orders 26 | . . . . . . . . . . . . . 2 13 2 . . . . 5 4 STAY 2 | . . . . . . . . . . . . . 1 . 1 . . . . . . ROAM 5 | . . . . . . . . . . . . . 1 3 1 . . . . . . COLLECT 16 | . . . . . . . . . . . . . . 7 . . . . . 5 4 EXPLORE 3 | . . . . . . . . . . . . . . 3 . . . . . . . Ally Attacks 144 | . . . . . . 15 . . 6 . . 35 . . 27 26 . . 35 . . Total Damage 3683 | . . . . . . 50 . . 224 . . 876 . . 672 905 . . 956 . . Kills 30 | . . . . . . 1 . . 4 . . 6 . . 2 6 . . 11 . . Allies Corrupted 6 | . . . . . . . . . . . . . . 1 . 1 . . 3 . 1 Allies Melted . | . . . . . . . . . . . . . . . . . . . . . . Intel | -11 -10 -10 -10 -9 -8 -8 -8 -7 -7 -7 -7 -6 -6 -5 -4 -4 -4 -4 -4 -3 -2 ------- Run | Scr Mat Min Exi Min Mat Gar Mat Fac Low Low Dat Pro Fac Fac Fac Ext Cet Arc Hub Res Res Robot Analysis Total 10 | . 1 . . . . . . . . . . . 5 . 1 3 . . . . . Derelict Logs Recovered 3 | . . 1 . . . . . . 1 1 . . . . . . . . . . . Drone Launches 27 | . . . . . . . . . . . . . . 14 . . . . . 5 8 Drone Recoveries 17 | . . . . . . . . . . . . . . 8 . . . . . 3 6 Exploration | -11 -10 -10 -10 -9 -8 -8 -8 -7 -7 -7 -7 -6 -6 -5 -4 -4 -4 -4 -4 -3 -2 ------------- Run | Scr Mat Min Exi Min Mat Gar Mat Fac Low Low Dat Pro Fac Fac Fac Ext Cet Arc Hub Res Res Turns Passed 22091 | 37 696 700 549 135 1140 682 408 4262 1796 1167 200 1235 1166 1190 1301 1796 869 180 901 1078 603 Spaces Moved 13174 | 32 553 563 424 105 635 409 234 2078 1074 696 106 566 786 660 847 1055 466 109 493 583 700 Core 123 | 6 . . . . . . . . . . . . . . . . 3 . . . 114 Treads . | . . . . . . . . . . . . . . . . . . . . . . Legs . | . . . . . . . . . . . . . . . . . . . . . . Wheels 12669 | 26 553 563 424 105 635 409 234 2078 1074 696 106 566 786 660 847 1055 463 109 493 583 204 Hover . | . . . . . . . . . . . . . . . . . . . . . . Flight 382 | . . . . . . . . . . . . . . . . . . . . . 382 Fastest Speed 30 | 50 80 90 100 120 120 130 130 140 160 160 170 160 130 130 130 130 100 130 130 130 30 Average Speed 134 | 79 90 107 118 120 126 130 130 162 165 160 170 163 130 130 130 130 122 130 135 135 64 Slowest Speed 180 | 90 110 110 120 120 130 130 130 170 170 170 170 170 160 130 130 140 150 130 180 140 130 Overloaded Moves 13 | . . . . . . . . . . . . . . . . . . . . . 13 Propulsion Burnouts . | . . . . . . . . . . . . . . . . . . . . . . Robots Hopped 5 | . . . . . . . . . . . . . . . . . . . . . 5 Cave-ins Triggered . | . . . . . . . . . . . . . . . . . . . . . . Exploration Rate (%) 52 | 3 77 98 70 39 44 35 26 46 98 84 69 57 19 29 20 85 70 82 45 23 25 Regions Visited 21 Branch Regions 11 Pre-discovered Areas 6 | . 1 . 1 . 1 . . 2 . . 1 . . . . . . . . . . Known Exits Taken 11 | . . . . . 1 . 1 1 1 1 1 1 1 . 1 1 . . . 1 . Unknown Exits Taken 9 | 1 1 1 1 1 . . . . . . . . . 1 . . 1 1 1 . . Scrap Searched 10 | . . 1 . 2 . . . . 3 4 . . . . . . . . . . . Spaces Dug 233 | . . . . 21 . . . 7 . 1 . 27 17 17 16 11 17 . 3 24 72 Terrain Destroyed 1186 | . 3 44 . 21 10 23 . 130 12 82 . 101 53 21 44 208 114 . 181 28 111 Melee 148 | . . . . . . . . 2 . 1 . 12 17 17 16 11 17 . 3 24 28 Projectile 129 | . . . . . . . . 9 . 7 . 14 2 4 20 28 19 . 22 4 . AOE 909 | . 3 44 . 21 10 23 . 119 12 74 . 75 34 . 8 169 78 . 156 . 83 Actions | -11 -10 -10 -10 -9 -8 -8 -8 -7 -7 -7 -7 -6 -6 -5 -4 -4 -4 -4 -4 -3 -2 --------- Run | Scr Mat Min Exi Min Mat Gar Mat Fac Low Low Dat Pro Fac Fac Fac Ext Cet Arc Hub Res Res Total 16406 | 40 657 615 473 111 855 516 329 2761 1094 720 127 806 892 912 1000 1353 728 152 674 794 797 Wait 1339 | . 25 4 7 . 119 47 72 416 1 3 . 135 16 140 61 71 43 5 96 69 9 Move 13142 | 31 552 562 423 104 634 407 233 2077 1073 695 105 565 785 659 846 1054 465 108 492 582 690 Hop 5 | . . . . . . . . . . . . . . . . . . . . . 5 Pick Up 375 | 3 17 10 26 . 7 13 6 70 5 . 20 23 25 17 10 16 53 15 11 23 5 Fast Attach 121 | 5 3 . 1 2 12 3 4 14 2 1 . 2 3 6 11 4 14 2 4 14 14 Attach 114 | 1 2 7 . . 3 1 . 11 . 1 1 8 3 9 6 13 10 . 16 11 11 Detach 62 | . . . . . 5 . 1 6 . . . . 2 1 5 9 11 . 5 9 8 Swap 129 | . 3 7 3 1 2 5 . 18 6 5 . 13 6 13 8 23 3 . 5 8 . Drop 258 | . 4 1 13 2 18 3 8 35 6 1 1 3 17 14 19 10 42 12 13 26 10 Fire 520 | . 51 24 . 2 55 21 5 94 . 13 . 32 9 18 13 47 66 10 22 27 11 Melee 206 | . . . . . . 1 . 4 1 1 . 16 18 32 21 26 21 . 10 25 30 Ram 4 | . . . . . . . . . . . . . . . . . . . . . 4 Kick . | . . . . . . . . . . . . . . . . . . . . . . Crush . | . . . . . . . . . . . . . . . . . . . . . . Escape Stasis 24 | . . . . . . . . 16 . . . . 8 . . . . . . . . Rewire 104 | . . . . . . 15 . . . . . 9 . . . 80 . . . . . Trap . | . . . . . . . . . . . . . . . . . . . . . . Miscellaneous 3 | . . . . . . . . . . . . . . 3 . . . . . . . Route ------- -11/Scrapyard -10/Materials (discovered 4 exits: [*Mat x3] / [*Min]) -10/Mines (discovered 2 exits: [*Mat] / *Exi) -10/Exiles -9/Mines -8/Materials (discovered 3 exits: *Fac x2 / Gar) -8/Garrison -8/Materials -7/Factory (discovered 5 exits: *Fac x3 / *Low x2) -7/Lower Caves -7/Lower Caves (discovered 2 exits: *Fac / *Dat) -7/Data Miner -6/Proximity Caves -6/Factory (discovered 4 exits: *Fac x4) -5/Factory (discovered 3 exits: *Fac / *Upp x2) -4/Factory (discovered 4 exits: Upp x2 / *Ext x2) -4/Extension (discovered 3 exits: *Res x2 / *Cet) -4/Cetus (discovered 2 exits: *Res / *Arc) -4/Archives (discovered 3 exits: *Res / *Hub x2) -4/Hub_04(d) (discovered 3 exits: *Res x3) -3/Research -2/Research History --------- Turn | Location | Event 16 | -11/Scrapyard | Discovered new exit (range 16) 38 | -11/Scrapyard | Entered Materials 234 | -10/Materials | Discovered new exit (range 11) 297 | -10/Materials | Discovered new exit (range 13) 334 | -10/Materials | Build established: Mutant 406 | -10/Materials | Discovered new exit (range 16) 577 | -10/Materials | Discovered new exit (range 8) 734 | -10/Materials | Entered Mines 736 | -10/Mines | Met a Derelict bent on vengeance 862 | -10/Mines | Lost 6 parts (1p2n3w) 971 | -10/Mines | Deemed a non-threat by the Exiles lab entrance 971 | -10/Mines | Discovered new exit (range 5) 1110 | -10/Mines | Learned location of 1 exit from Materials 1213 | -10/Mines | Joined a pair of Derelicts in attacking an 0b10 outpost 1304 | -10/Mines | Discovered new exit (range 11) 1434 | -10/Mines | Entered Exiles 1468 | -10/Exiles | Met 8R-AWN 1488 | -10/Exiles | Met EX-HEX 1650 | -10/Exiles | Met EX-DEC 1673 | -10/Exiles | Learned location of Zion (-6) 1742 | -10/Exiles | Build established: Hauler-Mutant 1780 | -10/Exiles | Met EX-BIN 1797 | -10/Exiles | Aligned with FarCom system 1798 | -10/Exiles | Given EX-Vault access code 1826 | -10/Exiles | Opened EX-Vault 1840 | -10/Exiles | Found XL Autogun Array 1866 | -10/Exiles | Warned to stay clear of 0b10 Research branches 1881 | -10/Exiles | Exiles lab attacked by MAIN.C 1942 | -10/Exiles | Discovered new exit (range 14) 1983 | -10/Exiles | Left Exiles lab with XL Autogun Array 1983 | -10/Exiles | Entered Mines 2026 | -9/Mines | Assembled infested the area 2031 | -9/Mines | Assisted by a Guerilla fighting off Assembled 2099 | -9/Mines | Discovered new exit (range 7) 2118 | -9/Mines | Entered Materials 2118 | -8/Materials | Evolved 4 slots: Utility x2, Weapon x2 2119 | -8/Materials | Identified exit to Factory 2731 | -8/Materials | Build established: Hauler-Skirmisher 3017 | -8/Materials | Discovered exit to Factory (range 9) 3256 | -8/Materials | Identified exit to Garrison 3258 | -8/Materials | Entered Garrison 3422 | -8/Garrison | Triggered checkpoint 3486 | -8/Garrison | Destroyed 7 combat bots 3669 | -8/Garrison | Discovered new exit (range 10) 3687 | -8/Garrison | Installed Relay Interface Framework 3798 | -8/Garrison | Triggered checkpoint 3841 | -8/Garrison | Spotted B-75 Beast 3940 | -8/Garrison | Entered Materials 4341 | -8/Materials | Discovered exit to Factory (range 4) 4348 | -8/Materials | Entered Factory 4348 | -7/Factory | Evolved 2 slots: Utility x2 4850 | -7/Factory | Identified exit to Lower Caves 5268 | -7/Factory | Discovered new exit (range 10) 5268 | -7/Factory | Central database locked down 5620 | -7/Factory | Lost 4 parts (1p1n1u1w) 5837 | -7/Factory | Repaired Hrd. Light Armor Plating? 6487 | -7/Factory | Repaired Arm. Huge Wheel 6815 | -7/Factory | Discovered new exit (range 13) 7608 | -7/Factory | Fabricated Scythe? 7702 | -7/Factory | Fabricated Humpback? 8348 | -7/Factory | First assault squad dispatched 8486 | -7/Factory | Discovered new exit (range 11) 8610 | -7/Factory | Entered Lower Caves 8817 | -7/Lower Caves | A Commander dispatched an escort 8819 | -7/Lower Caves | Learned Extension trap positions 8819 | -7/Lower Caves | Learned Research security intel 8819 | -7/Lower Caves | Learned Extension garrison access intel 8832 | -7/Lower Caves | Build established: Hauler-Mutant 9159 | -7/Lower Caves | Discovered new exit (range 11) 9166 | -7/Lower Caves | Learned Factory garrison access intel 9879 | -7/Lower Caves | Build established: Hauler-Skirmisher 10402 | -7/Lower Caves | Identified exit to Lower Caves 10406 | -7/Lower Caves | Entered another Lower Caves area 10406 | -7/Lower Caves | Accompanied by 2 allies 10407 | -7/Lower Caves | Commander's escort returned to base 10407 | -7/Lower Caves | Commander's escort returned to base 10650 | -7/Lower Caves | Discovered new exit (range 15) 11104 | -7/Lower Caves | Learned Factory terminal intel 11340 | -7/Lower Caves | Discovered new exit (range 9) 11351 | -7/Lower Caves | Identified exit to Data Miner 11479 | -7/Lower Caves | Attracted the attention of an 0b10 outpost 11523 | -7/Lower Caves | Destroyed 7 combat bots 11573 | -7/Lower Caves | Entered Data Miner 11573 | -7/Data Miner | Discovered new exit (range 6) 11649 | -7/Data Miner | Identified exit to Proximity Caves 11671 | -7/Data Miner | Met Data Miner 11717 | -7/Data Miner | Learned location of Section 7 (-3) 11717 | -7/Data Miner | Acquired the access code to Warlord's prototype stash 11734 | -7/Data Miner | Received God Mode back door access code from Data Miner 11773 | -7/Data Miner | Entered Proximity Caves 11972 | -6/Proximity Caves | Escorted by Enhanced Grunt 12039 | -6/Proximity Caves | Attracted the attention of an 0b10 outpost 12212 | -6/Proximity Caves | Spotted B-75 Beast 12305 | -6/Proximity Caves | Build established: Hauler-Tank 12375 | -6/Proximity Caves | Core integrity fell below 50% 12444 | -6/Proximity Caves | Lost 6 parts (1p1n4w) 12665 | -6/Proximity Caves | Build established: Hauler-Mutant 12711 | -6/Proximity Caves | Discovered new exit (range 16) 12734 | -6/Proximity Caves | Identified exit to Factory 12886 | -6/Proximity Caves | Received a Behemoth hack from an annoying Tinkerer 13008 | -6/Proximity Caves | Entered Factory 13008 | -6/Factory | Evolved 2 slots: Propulsion x2 13009 | -6/Factory | Loaded intel: 20 terminal locations 13010 | -6/Factory | Loaded intel: 4 garrison access locations 13398 | -6/Factory | Build established: Hauler-Skirmisher 13811 | -6/Factory | Repaired Arm. Huge Wheel 13874 | -6/Factory | Identified exit to Factory 14174 | -6/Factory | Entered another Factory area 14174 | -5/Factory | Accompanied by 1 ally 14174 | -5/Factory | Evolved 2 slots: Utility x2 14562 | -5/Factory | Discovered new exit (range 16) 14716 | -5/Factory | Discovered new exit (range 29) 14845 | -5/Factory | Lost 4 parts (3p1u) 14938 | -5/Factory | Identified exit to Upper Caves 14968 | -5/Factory | Fabricated Humpback (x1) 14996 | -5/Factory | Fabricated Humpback (x1) 15023 | -5/Factory | Fabricated Humpback (x1) 15132 | -5/Factory | Repaired Imp. Sensor Array 15164 | -5/Factory | Repaired Antimatter Reactor 15229 | -5/Factory | Build established: Hacker-Skirmisher 15364 | -5/Factory | Entered another Factory area 15364 | -4/Factory | Evolved 2 slots: Utility x2 15399 | -4/Factory | Identified exit to Upper Caves 15399 | -4/Factory | Identified exit to Extension 15652 | -4/Factory | Central database locked down 15681 | -4/Factory | Build established: Wizard-Skirmisher 15811 | -4/Factory | Fabricated Hvy. Insulated Plating (x1) 15893 | -4/Factory | Fabricated Hvy. Insulated Plating (x1) 15972 | -4/Factory | Fabricated Hvy. Insulated Plating (x1) 16044 | -4/Factory | Incoming investigation squad redirected 16075 | -4/Factory | Fabricated Recoil Nullifier? 16397 | -4/Factory | Allied Derelicts emerged from ambush trap array 16430 | -4/Factory | Build established: Hacker-Skirmisher 16463 | -4/Factory | Local fabrication network quarantined 16614 | -4/Factory | First assault squad dispatched 16665 | -4/Factory | Entered Extension 16666 | -4/Extension | Loaded intel: 20 trap records 16963 | -4/Extension | Rescued a captive Derelict 16964 | -4/Extension | Rescued a captive Derelict 17046 | -4/Extension | Rescued a captive Derelict 17047 | -4/Extension | Rescued a captive Derelict 17077 | -4/Extension | Central database locked down 17109 | -4/Extension | Rescued a captive Derelict 17155 | -4/Extension | Rescued a captive Derelict 17211 | -4/Extension | Energy Cycler disabled 17211 | -4/Extension | Rescued a captive Derelict 17212 | -4/Extension | Rescued a captive Derelict 17212 | -4/Extension | Rescued a captive Derelict 17212 | -4/Extension | Rescued a captive Derelict 17213 | -4/Extension | Rescued a captive Derelict 17213 | -4/Extension | Rescued a captive Derelict 17213 | -4/Extension | Rescued a captive Derelict 17216 | -4/Extension | Rescued a captive Derelict 17216 | -4/Extension | Rescued a captive Derelict 17219 | -4/Extension | Rescued a captive Derelict 17636 | -4/Extension | Spotted B-86 Titan 17701 | -4/Extension | Destroyed B-86 Titan 17740 | -4/Extension | Disrupted transfer network 17897 | -4/Extension | Destroyed 9 combat bots 17950 | -4/Extension | Discovered new exit (range 15) 17953 | -4/Extension | Spotted B-86 Titan 17969 | -4/Extension | Destroyed B-86 Titan 18104 | -4/Extension | Identified exit to Cetus 18169 | -4/Extension | Build established: Hauler-Tank 18443 | -4/Extension | Discovered new exit (range 10) 18461 | -4/Extension | Entered Cetus 18461 | -4/Cetus | Accompanied by 1 ally 18661 | -4/Cetus | Spotted Cetus Guard 18661 | -4/Cetus | Spotted Cetus Guard 18682 | -4/Cetus | Destroyed Cetus Guard 18685 | -4/Cetus | Spotted Cetus Guard 18686 | -4/Cetus | Destroyed Cetus Guard 18689 | -4/Cetus | Destroyed Cetus Guard 18702 | -4/Cetus | Lost 3 parts (1n1u1w) 18732 | -4/Cetus | Spotted Cetus Guard 18756 | -4/Cetus | Destroyed Cetus Guard 18763 | -4/Cetus | Lost 7 parts (1p1n4u1w) 19049 | -4/Cetus | Found a strange terminal 19075 | -4/Cetus | Discovered new exit (range 16) 19104 | -4/Cetus | Spotted Cetus Guard 19104 | -4/Cetus | Spotted Cetus Guard 19105 | -4/Cetus | Spotted Cetus Guard 19110 | -4/Cetus | Destroyed Cetus Guard 19112 | -4/Cetus | Destroyed Cetus Guard 19112 | -4/Cetus | Spotted Cetus Guard 19117 | -4/Cetus | Destroyed Cetus Guard 19119 | -4/Cetus | Destroyed Cetus Guard 19127 | -4/Cetus | Discovered new exit (range 16) 19133 | -4/Cetus | Met Revision 17 19330 | -4/Cetus | Entered Archives 19355 | -4/Archives | Core integrity fell below 50% 19363 | -4/Archives | Build established: Hauler-Gunner 19415 | -4/Archives | Unable to access archive contents 19420 | -4/Archives | Discovered new exit (range 14) 19460 | -4/Archives | Discovered new exit (range 15) 19480 | -4/Archives | Discovered new exit (range 13) 19510 | -4/Archives | Entered Hub_04(d) 19749 | -4/Hub_04(d) | Discovered new exit (range 4) 19813 | -4/Hub_04(d) | Discovered new exit (range 13) 20063 | -4/Hub_04(d) | Garrison activated, responded to threat 20161 | -4/Hub_04(d) | Discovered new exit (range 9) 20237 | -4/Hub_04(d) | Network Hub disabled 20289 | -4/Hub_04(d) | Incoming investigation squad redirected 20303 | -4/Hub_04(d) | Lost 4 parts (1n2u1w) 20309 | -4/Hub_04(d) | Spotted Lightning 20327 | -4/Hub_04(d) | Spotted Lightning 20332 | -4/Hub_04(d) | Spotted Lightning 20341 | -4/Hub_04(d) | System corruption reached 10% 20411 | -4/Hub_04(d) | Entered Research 20411 | -3/Research | Evolved 2 slots: Power x1, Utility x1 20439 | -3/Research | Lost 5 parts (3p1n1w) 20511 | -3/Research | Found Unknown Device 20511 | -3/Research | Identified Antimissile System 21169 | -3/Research | Discovered new exit (range 100) 21489 | -3/Research | Identified exit to Research 21489 | -3/Research | Entered another Research area 21489 | -2/Research | Evolved 2 slots: Power x1, Utility x1 21626 | -2/Research | Found Exp. Signal Interpreter 21839 | -2/Research | Core integrity fell below 50% 21840 | -2/Research | Lost 9 parts (1p2n5u1w) 21841 | -2/Research | Found Fusion Bomb Launcher 21851 | -2/Research | Found Fusion Bomb Launcher 21886 | -2/Research | Incoming investigation squad redirected 21892 | -2/Research | Found Prototype Processor 21892 | -2/Research | Identified Exp. Melee Analysis Suite 21900 | -2/Research | Lost 4 parts (1p1n2u) 21930 | -2/Research | Spotted B-90 Cyclops 21951 | -2/Research | Core integrity fell below 20% 22026 | -2/Research | First assault squad dispatched 22048 | -2/Research | Incoming assault squad redirected 22091 | -2/Research | Incoming investigation squad redirected 22092 | -2/Research | Destroyed by P-80 Master with Gamma Rifle Last Messages --------------- >>Traps(Reprogram) Reprogrammed 4 Stasis Traps. 22048_ ALERT: Higher priority target reported, redirecting assault. 22063_ Field Propulsion Drive destroyed. 22065_ Slug penetrates Wall. 22066_ Dropped Lgt. Quantum Reactor. 22068_ Connecting with Fabricator... >>Force(Overload) EM_IMPRINTER_OVERLOAD 22068_ ALERT: Suspicious activity at Fabricator R001. Dispatching Investigation squad. 22069_ Fabricator zaps G-73 Enforcer with an electromagnetic arc. 22069_ Fabricator powers down. 22083_ Fusion Bomb Launcher destroyed. 22086_ Hvy. Pick destroyed. 22089_ Stealth Drone released from Stealth Drone Bay. 22089_ Slammed into S-43 Plague. 22090_ Stealth Drone system terminally corrupted. 22091_ ALERT: Higher priority target reported, redirecting investigation. 22091_ Slammed into S-43 Plague. 22091_ Destabilizing: System corrupted (+2). Map ----- +----------------------------------------------------+ | ?????????????????????????????????????????????????? | | ?????????????????????????????????????????????????? | | ?????????????????????????????????????????????????? | | ?????????????????????????????????????????????????? | | ???????????????????????????????????????????####### | | ???????????????????????????????????????????# | | ???????????????????????????????????????????# | | ???????????????????????????????????????????# "" | | ???????????????????????????????????????????# """ | | ???????????????????????????????????????????# [ T" | | ???????????????????????????????????????????# """ | | ???????????????????????????????????????????# "" | | ??????????????????????????????????????????## | | ?????????????????????????????????????????### | | ?????????????????????????????????????#####"####### | | ?????????????????????????????????????# ## | | ?????????????????????????????????????# ## | | ?????????????????????????????????????# "" ## | | ?????????????????????????????????????# " ## | | ???????????????????????????########### "F ## | | ???????????????????????????# # "" ## | | ???????????????????????????# ! # ## | | ???????????????????????????# # ## | | ???????????????????????????# # ## | | ????????????????????????#### # ## | | ????????????????????????#@ # # ## | | ????????????????????????##ss % p # ## | | ?????????????????????????### gp # ## | | ????????????????????????########g######"###### | | ???????????????????s????# hg | | ????????????????sss?????# | | ???????????????s????????# | | ????????????????????????/w *% | | ?????????????????????? # ##################+## | | ???????????????????? ??# ?????????????# [[%[=/ | | ??##???????###????? ????# ?????????????# =[][![ | | ??# ##?????# #??????????# ?????????????# """[! | | ???#"#######"#??????????#^ #????????????# """| | | ???## ##??????????# ############## """ | | ????# #???????????# # # | | ????# #???????????# # # | | ????# #???????????# # """ """ # """ | | ????# #???????????# g# """ """ # """ | | ????# """ #???????????# gg# """ """ # """ | | ????# """ #???????????# s# # | | ????# "" #???????????# + # | | ???## #???????????+ # """ """ ######## | | ####" #???????????# # """ """ #??????? | | "# #???????????# # """ """ #??????? | | ######## ############# # #??????? | +----------------------------------------------------+ Best States ------------- Heat Dissipation 100 Energy Generation 45 Energy Capacity 850 Matter Stores 391 Matter Capacity 500 Sight Range 20 Robot Scan Range 13 Terrain Scan Range 20 Terrain Scan Density 10 Jamming Range 16 Power Amplification 20 Armor Coverage 1425 Resistance: KI 30 Resistance: TH 10 Resistance: EM 30 Utility Shielding 66 Evasion (%) 63 Targeting Accuracy 16 Target Analysis 5 Armor Integrity Analysis 33 Recoil Reduction 6 Offensive Hacking 42 Defensive Hacking 28 Item Schematics ----------------- Hcp. Storage Unit | -10/Materials | Hacked Hacking Suite | -8/Materials | Hacked System Shield | -8/Materials | Hacked Adv. Sensor Array | -8/Materials | Hacked Humpback | -8/Materials | Scanalyzed Arm. Huge Wheel | -8/Materials | Scanalyzed Hcp. Matter Pod | -8/Materials | Scanalyzed Scythe | -8/Materials | Extracted Arm. Wheel | -8/Materials | Extracted Seismic Analyzer | -8/Materials | Extracted Imp. EM Shotgun | -8/Materials | Extracted Reflective Plating | -8/Materials | Extracted Lrg. Matter Pod | -8/Materials | Extracted Recoil Stabilizer | -8/Materials | Extracted Adv. Visual Processing Unit | -8/Materials | Extracted Adv. Treads | -8/Materials | Extracted Imp. Treads | -8/Materials | Extracted Core Analyzer | -7/Factory | Extracted Particle Charger | -7/Factory | Extracted Imp. Cooling System | -7/Factory | Extracted Target Analyzer | -7/Factory | Extracted Com. Matter Pod | -7/Factory | Extracted Minigun | -7/Factory | Extracted Integration Mediator | -7/Factory | Extracted Imp. Airjet | -7/Factory | Extracted Imp. Utility Shielding | -7/Factory | Extracted Plasma Cutter | -7/Factory | Extracted Med. Matter Pod | -7/Factory | Extracted Autogun | -7/Factory | Extracted Adv. Weight Redist. System | -7/Factory | Extracted Propulsion Shielding | -7/Factory | Extracted Imp. Light Armor Plating | -7/Factory | Extracted Hpw. Tractor Beam | -7/Factory | Extracted Terrain Scan Processor | -7/Factory | Extracted Kinecellerator | -7/Factory | Extracted System Backup Module | -7/Factory | Extracted Mic. Nuclear Core | -7/Factory | Extracted Imp. Carbon-fiber Leg | -7/Factory | Extracted Adv. Signal Interpreter | -7/Factory | Hacked Combat Drone Bay | -7/Data Miner | Free Lgt. Regenerative Plating | -7/Data Miner | Free Exp. Flexi-carbon Leg | -7/Data Miner | Free Exp. Cesium-ion Thruster | -7/Data Miner | Free Triangulator | -7/Data Miner | Free Exp. Transmission Jammer | -7/Data Miner | Free Cloaking Device | -7/Data Miner | Free Mni. Smartbomb Launcher | -7/Data Miner | Free Imp. System Shield | -6/Factory | Scanalyzed Adv. Terrain Scan Processor | -6/Factory | Scanalyzed Adv. Terrain Scanner | -5/Factory | Scanalyzed Adv. Targeting Computer | -5/Factory | Scanalyzed Adv. Hacking Suite | -5/Factory | Hacked Adv. System Shield | -5/Factory | Hacked Hvy. Insulated Plating | -4/Factory | Hacked Exp. Targeting Computer | -4/Factory | Hacked Adv. Armor Integrity Analyzer | -4/Factory | Hacked Recoil Nullifier | -4/Factory | Hacked Force Lance | -4/Factory | Hacked Prc. Matter Filter | -4/Extension | Hacked Imp. Kinecellerator | -4/Extension | Hacked Imp. Powered Armor | -4/Extension | Hacked Robot Schematics ------------------ S-27 Virus | -7/Data Miner | Free G-50 Soldier | -7/Data Miner | Free G-67 Veteran | -7/Data Miner | Free L-41 Fighter | -7/Data Miner | Free X-72 Disruptor | -7/Data Miner | Free P-70 Sage | -7/Data Miner | Free I-36 Angel | -7/Data Miner | Free I-47 Archangel | -7/Data Miner | Free Fabricated ------------ Scythe | x2 | -7/Factory Humpback | x1 | -7/Factory Humpback | x1 | -5/Factory Humpback | x1 | -5/Factory Humpback | x1 | -5/Factory Hvy. Insulated Plating | x1 | -4/Factory Hvy. Insulated Plating | x1 | -4/Factory Hvy. Insulated Plating | x1 | -4/Factory Recoil Nullifier | x2 | -4/Factory Alien Tech Used ----------------- None Achievements -------------- None Challenges ------------ None Game ------ Seed SignalResetRegenerator Manual? 0 Play Time 05:19:41 Cumulative 275.2 hours Start 2020.07.01 @ 13:50:31 End 2020.07.03 @ 11:17:34 Sessions 11 Manual Loads 0 Difficulty Rogue Special Mode None Game No. 128 Rogue 127 Adventurer 0 Explorer 1 Win Type - Total 14 Types 10/0/4/0/0/0/0 Lore% 80 Gallery% 84 Achievement% 68 Wizard Run 0 Options --------- ASCII 0 Keyboard 1 Movement Numpad Keybinds 1 Fullscreen 2 Font 24/Terminus Map View 129x80 Tactical HUD 1 Map Filters NONE Filters NONE Steam 1 RUN: ee3d155d-8996-4740-87a9-f33642fbc3cd